bitfinex-derivatives/quotes_ETHF0:USTF0_20250430
["timestamp","ask_amount","ask_price","bid_price","bid_amount"]
[1746007414745,1.10702,1806.2,1806.1,41.90702]
[1746007414934,3.1328661,1806.2,1806.1,41.90702]
[1746007415137,3.9621661,1806.2,1806.1,41.90702]
[1746007415946,3.96213207,1806.2,1806.1,41.90702]
[1746007417640,7.22348281,1806.2,1806.1,1.10702]
[1746007417844,1.10708,1806.1,1806.0,1.10711]
[1746007418144,7.32246979,1806.1,1806.0,4.93511]
[1746007419349,7.32246979,1806.1,1806.0,1.10711]
[1746007421648,7.32194941,1806.1,1806.0,1.10711]
[1746007423549,7.32184718,1806.1,1806.0,1.10711]
[1746007425448,6.87973074,1806.1,1806.0,1.10711]
[1746007425648,7.32176677,1806.1,1806.0,1.10711]
[1746007427147,1.10714,1806.0,1805.9,40.8]
[1746007427350,1.10726,1805.8,1805.7,4.31506]
[1746007427551,4.81064677,1805.8,1805.7,4.31506]
[1746007427853,1.10732,1805.7,1805.6,41.90733]
[1746007428053,4.36873074,1805.6,1805.5,3.2078]
[1746007428246,5.64366677,1805.6,1805.5,3.2078]
[1746007428446,7.26316677,1805.6,1805.5,3.2078]
[1746007428852,7.26316677,1805.6,1805.5,4.31524]
[1746007429542,7.26316677,1805.6,1805.5,6.81744]
[1746007430253,7.26316677,1805.6,1805.5,10.64544]
[1746007430449,7.26316677,1805.6,1805.5,8.94224]
[1746007431252,7.26316677,1805.6,1805.5,7.0358]
[1746007432057,12.26316677,1805.6,1805.5,3.828]
[1746007432250,12.26316677,1805.6,1805.0,19.22002402]
[1746007432251,1.10767,1805.2,1805.1,1.10764]
[1746007432455,1.10769,1805.1,1805.0,10.54868402]
[1746007432752,5.22354074,1805.1,1805.0,10.54868402]
[1746007432952,1.96219,1805.1,1805.0,10.54868402]
[1746007433151,1.96219,1805.1,1805.0,14.37668402]
[1746007433855,5.22354074,1805.1,1805.0,15.48443402]
[1746007434253,5.22354074,1805.1,1805.0,14.37668402]
[1746007434455,5.22354074,1805.1,1805.0,15.48443402]
[1746007435255,5.22354074,1805.1,1805.0,11.65643402]
[1746007436052,5.22354074,1805.1,1805.0,21.31657446]
[1746007437056,2.5179121,1805.1,1805.0,17.00102446]
[1746007437257,2.09317375,1805.1,1805.0,18.10877446]
[1746007437557,3.80227375,1805.1,1805.0,18.10877446]
[1746007438156,3.80227375,1805.1,1805.0,21.93677446]
[1746007438359,3.80227375,1805.1,1805.0,23.61977446]
[1746007440656,3.80227375,1805.1,1805.0,20.82902446]
[1746007441160,3.80227375,1805.1,1805.0,17.00102446]
[1746007441351,3.80227375,1805.1,1805.0,7.34088402]
[1746007441547,3.80227375,1805.1,1805.0,7.33666501]
[1746007442155,3.80227375,1805.1,1805.0,8.44441501]
[1746007442156,1.7091,1805.1,1805.0,8.44441501]
[1746007442357,1.7091,1805.1,1805.0,10.83671501]
[1746007442658,2.81679,1805.1,1805.0,10.83671501]
[1746007443164,2.81679,1805.1,1805.0,14.66471501]
[1746007443853,2.81277212,1805.1,1805.0,14.66471501]
[1746007444361,1.10769,1805.1,1805.0,14.66471501]
[1746007445357,3.2078,1805.2,1805.1,1.10769]
[1746007445564,1.10761,1805.3,1805.2,1.10757]
[1746007445961,4.31535,1805.4,1805.3,1.10757]
[1746007446266,5.30083375,1805.4,1805.3,1.10757]
[1746007446459,1.10755,1805.4,1805.3,1.94177]
[1746007447263,1.10755,1805.4,1805.3,5.76977]
[1746007448860,2.78965,1805.4,1805.3,5.76977]
[1746007449561,3.77513375,1805.4,1805.3,4.93557]
[1746007450167,3.77513375,1805.4,1805.3,1.10757]
[1746007455169,4.20061987,1805.4,1805.3,1.10757]
[1746007455468,2.10774668,1805.4,1805.3,2.77307]
[1746007456064,3.21525668,1805.4,1805.3,2.77307]
[1746007456270,3.21525668,1805.4,1805.3,6.60107]
[1746007456769,4.20074043,1805.4,1805.3,6.60107]
[1746007457364,4.20117244,1805.4,1805.3,6.60107]
[1746007458874,2.51907244,1805.4,1805.3,6.60107]
[1746007459468,2.51914136,1805.4,1805.3,6.60107]
[1746007459670,4.14474136,1805.4,1805.3,6.60107]
[1746007460376,4.14474136,1805.4,1805.3,4.93557]
[1746007460977,3.15925761,1805.4,1805.3,4.93557]
[1746007461374,4.14474136,1805.4,1805.3,4.93557]
[1746007462780,4.99254136,1805.4,1805.3,4.93557]
[1746007463276,4.99281073,1805.4,1805.3,1.10757]
[1746007464579,4.99282572,1805.4,1805.3,1.10757]
[1746007465278,4.99282378,1805.4,1805.3,1.10757]
[1746007465786,4.14502378,1805.4,1805.3,1.10757]
[1746007466485,1.92569,1805.6,1805.5,1.10744]
[1746007466679,4.56377375,1805.6,1805.5,1.10744]
[1746007467184,4.56377375,1805.6,1805.5,4.93544]
[1746007468079,4.56377375,1805.6,1805.5,3.828]
[1746007468280,1.10744,1805.5,1805.4,1.93416]
[1746007468477,3.79482375,1805.5,1805.4,1.93416]
[1746007469184,3.79482375,1805.5,1805.4,5.76216]
[1746007476997,3.79482375,1805.5,1805.4,5.76221]
[1746007478297,3.79482375,1805.5,1805.4,1.93421]
[1746007478496,4.21547961,1805.5,1805.4,1.93421]
[1746007478685,4.21548048,1805.5,1805.4,1.93421]
[1746007480598,4.21547705,1805.5,1805.4,1.93421]
[1746007482593,4.21548901,1805.5,1805.4,1.93421]
[1746007485801,4.21548901,1805.5,1805.4,4.53691]
[1746007486099,3.23000526,1805.5,1805.4,4.53691]
[1746007486300,3.23000526,1805.5,1805.4,8.36491]
[1746007488202,2.80934,1805.5,1805.4,15.70157501]
[1746007488394,3.22997041,1805.5,1805.4,15.70157501]
[1746007491300,3.22997041,1805.5,1805.4,25.29275185]
[1746007496707,4.21545416,1805.5,1805.4,25.29275185]
[1746007498010,4.21566529,1805.5,1805.4,25.29275185]
[1746007498608,4.21566529,1805.5,1805.4,24.42417435]
[1746007499205,4.21566529,1805.5,1805.4,20.59617435]
[1746007499607,4.21566529,1805.5,1805.4,21.70368435]
[1746007499908,4.21571554,1805.5,1805.4,21.70368435]
[1746007501305,3.79482375,1805.5,1805.4,21.70368435]
[1746007501600,3.79482375,1805.5,1805.4,23.44068435]
[1746007501814,3.79482375,1805.5,1805.4,2.84451]
[1746007502104,3.79482375,1805.5,1805.4,1.10751]
[1746007502310,3.79482375,1805.5,1805.4,4.93551]
[1746007502505,4.21569655,1805.5,1805.4,4.93551]
[1746007504210,4.21569655,1805.5,1805.4,12.29664684]
[1746007504413,3.10825655,1805.5,1805.4,14.02204684]
[1746007504612,2.1227728,1805.5,1805.4,14.88404684]
[1746007505013,4.21569655,1805.5,1805.4,12.29664684]
[1746007505213,5.04729655,1805.5,1805.4,8.46864684]
[1746007506210,4.21569655,1805.5,1805.4,8.46864684]
[1746007506611,4.21569152,1805.5,1805.4,8.46864684]
[1746007507113,4.21569524,1805.5,1805.4,8.46864684]
[1746007507714,4.21569524,1805.5,1805.4,18.06991059]
[1746007508112,4.21569524,1805.5,1805.4,16.96240059]
[1746007508315,4.21573581,1805.5,1805.4,16.96240059]
[1746007508909,4.21573596,1805.5,1805.4,16.96240059]
[1746007509212,4.21573596,1805.5,1805.4,7.36113684]
[1746007509511,1.10751,1805.4,1805.3,1.10753]
[1746007509714,3.36360596,1805.4,1805.3,1.10753]
[1746007510011,4.99550596,1805.4,1805.3,1.10753]
[1746007510514,2.76893,1805.3,1805.0,3.828]
[1746007510716,2.09317375,1805.1,1805.0,4.93571]
[1746007510920,2.51412861,1805.1,1805.0,4.93571]
[1746007511115,5.01002861,1805.1,1805.0,3.828]
[1746007511317,1.10775,1805.0,1804.9,3.2078]
[1746007511619,5.07398861,1805.0,1804.9,3.2078]
[1746007511815,5.07398861,1805.0,1804.9,4.31561]
[1746007512015,5.07398861,1805.0,1804.8,0.861]
[1746007512016,1.10794,1804.7,1804.6,0.8562]
[1746007512319,2.09340375,1804.8,1804.7,1.10794]
[1746007512512,1.10784,1804.9,1804.8,1.10787]
[1746007512712,6.87537,1805.0,1804.9,1.10781]
[1746007512912,8.28143699,1805.0,1804.9,1.10781]
[1746007513108,8.28143699,1805.0,1804.9,4.93581]
[1746007513417,7.40733699,1805.0,1804.9,3.828]
[1746007513618,8.22483699,1805.0,1804.9,4.6596]
[1746007514311,8.22460005,1805.0,1804.9,4.6596]
[1746007514514,8.22461326,1805.0,1804.9,3.828]
[1746007515114,1.10787,1804.8,1804.7,1.95332]
[1746007515712,2.75507,1804.8,1804.7,1.95332]
[1746007516217,2.75507,1804.8,1804.7,5.78132]
[1746007516619,2.75507,1804.8,1804.7,43.36881392]
[1746007517715,2.09335375,1804.8,1804.7,43.36881392]
[1746007518019,1.10787,1804.8,1804.7,45.05011392]
[1746007518921,2.09335375,1804.8,1804.7,30.66198818]
[1746007519721,2.09335375,1804.8,1804.7,31.76992818]
[1746007519923,2.09335375,1804.8,1804.7,30.66198818]
[1746007520125,2.09335375,1804.8,1804.7,31.76992818]
[1746007521224,2.09335375,1804.8,1804.7,27.94192818]
[1746007521819,2.09335375,1804.8,1804.7,38.97251617]
[1746007522019,2.09335375,1804.8,1804.7,23.15276274]
[1746007522219,2.09335375,1804.8,1804.7,20.62606274]
[1746007522418,2.96125375,1804.8,1804.7,20.62606274]
[1746007524224,2.96125375,1804.8,1804.7,7.35208645]
[1746007524825,4.64075375,1804.8,1804.7,8.46002645]
[1746007525018,5.53836,1805.2,1805.1,1.10769]
[1746007525019,3.2078,1805.2,1805.1,1.10769]
[1746007525230,1.10769,1805.2,1805.1,1.10769]
[1746007525725,2.09317375,1805.2,1805.1,1.10769]
[1746007525927,2.09317375,1805.2,1805.1,1.94009]
[1746007526726,2.09317375,1805.2,1805.1,3.51949]
[1746007529922,0.98548375,1805.2,1805.1,3.51949]
[1746007530128,1.10762,1805.3,1805.2,1.10763]
[1746007530332,1.10762,1805.3,1805.2,3.63423]
[1746007530629,2.09310375,1805.3,1805.2,3.63423]
[1746007530827,5.45724,1805.4,1805.3,1.10757]
[1746007531023,5.63002375,1805.4,1805.3,2.77947]
[1746007531218,2.09302375,1805.4,1805.3,6.60747]
[1746007531418,1.10754,1805.4,1805.3,6.60747]
[1746007533031,2.09302375,1805.4,1805.3,5.4999]
[1746007533225,2.09302375,1805.4,1805.3,1.6719]
[1746007533531,1.10763,1805.2,1805.1,14.20092645]
[1746007533719,2.09311375,1805.2,1805.1,14.20092645]
[1746007534430,3.70111375,1805.2,1805.1,8.18448645]
[1746007535227,3.70111375,1805.2,1805.1,0.8324]
[1746007538535,1.10769,1805.1,1805.0,7.35208645]
[1746007538836,6.95597375,1805.1,1805.0,7.35208645]
[1746007539434,6.95597375,1805.1,1804.9,52.93839799]
[1746007539435,1.10775,1805.0,1804.9,41.90781]
[1746007539636,4.58303375,1805.0,1804.9,1.10781]
[1746007540533,1.10781,1804.9,1804.8,48.01103]
[1746007540736,2.09329375,1804.9,1804.8,7.21103]
[1746007540925,1.10787,1804.8,1804.7,4.31571]
[1746007541131,3.68225375,1804.8,1804.7,4.31571]
[1746007541331,3.68225375,1804.8,1804.7,3.2078]
[1746007542138,4.10329833,1804.8,1804.7,3.2078]
[1746007542837,4.10293117,1804.8,1804.7,3.2078]
[1746007543537,4.10256004,1804.8,1804.7,3.2078]
[1746007544338,1.10794,1804.7,1804.6,0.8513]
[1746007544543,5.08703004,1804.7,1804.6,1.9593]
[1746007544741,5.08690306,1804.7,1804.6,1.9593]
[1746007545037,5.08690306,1804.7,1804.6,0.8513]
[1746007545740,1.108,1804.6,1804.5,5.97671]
[1746007545939,4.24266306,1804.6,1804.5,5.97671]
[1746007546139,3.25717931,1804.6,1804.5,2.76891]
[1746007546440,4.24266306,1804.6,1804.5,2.76891]
[1746007546635,4.24253226,1804.6,1804.5,2.76891]
[1746007547637,4.24253226,1804.6,1804.5,2.76896]
[1746007548532,4.24287393,1804.6,1804.5,2.76896]
[1746007550443,3.82248375,1804.6,1804.5,2.76896]
[1746007550640,4.24337089,1804.6,1804.5,2.76896]
[1746007552337,3.82248375,1804.6,1804.5,2.76896]
[1746007552536,4.24338907,1804.6,1804.5,2.76896]
[1746007553442,2.51438907,1804.6,1804.5,2.76896]
[1746007554339,2.51440377,1804.6,1804.5,2.76896]
[1746007554537,4.26400377,1804.6,1804.5,2.76896]
[1746007556237,1.10806,1804.5,1804.4,0.8652]
[1746007556432,4.19056377,1804.5,1804.4,0.8652]
[1746007556635,1.10812,1804.4,1804.3,46.74737]
[1746007556940,5.00722377,1804.4,1804.3,46.74737]
[1746007557242,4.02174002,1804.4,1804.3,50.57537]
[1746007558146,0.42092002,1804.4,1804.3,50.57537]
[1746007558844,1.1081,1804.5,1804.4,1.10812]
[1746007559045,1.52887343,1804.5,1804.4,2.73952]
[1746007559249,2.51435718,1804.5,1804.4,2.73952]
[1746007559444,2.51435718,1804.5,1804.4,1.6314]
[1746007559841,4.15725718,1804.5,1804.4,1.6314]
[1746007561546,4.15722952,1804.5,1804.4,1.6314]
[1746007561738,3.17174577,1804.5,1804.4,1.6314]
[1746007563643,1.10812,1804.4,1804.3,44.628]
[1746007563845,1.52886577,1804.4,1804.3,3.828]
[1746007564048,4.09456577,1804.4,1804.3,3.828]
[1746007564247,1.10818,1804.3,1804.2,2.4244]
[1746007564447,3.27122577,1804.3,1804.2,2.4244]
[1746007564840,0.42074577,1804.3,1804.2,3.53264]
[1746007565045,1.10812,1804.5,1804.4,1.10808]
[1746007565343,1.5286436,1804.5,1804.4,1.10808]
[1746007566246,1.5286436,1804.5,1804.4,4.93608]
[1746007566948,2.51411527,1804.5,1804.4,4.93608]
[1746007568851,2.51413374,1804.5,1804.4,4.93608]
[1746007570752,2.514151,1804.5,1804.4,4.93608]
[1746007575156,1.52866725,1804.5,1804.4,4.93608]
[1746007575851,1.52866725,1804.5,1804.4,6.67338]
[1746007576457,0.42054725,1804.5,1804.4,6.67338]
[1746007576851,1.52860725,1804.5,1804.4,6.67338]
[1746007577771,4.990791,1804.5,1804.4,6.67338]
[1746007578573,4.99101392,1804.5,1804.4,6.67338]
[1746007578974,4.99101392,1804.5,1804.4,5.5653]
[1746007579569,4.99101392,1804.5,1804.4,6.67342]
[1746007579771,4.99103695,1804.5,1804.4,47.47342]
[1746007579966,4.99103695,1804.5,1804.4,6.67342]
[1746007580573,4.99104528,1804.5,1804.4,6.67342]
[1746007581074,4.99104528,1804.5,1804.4,3.828]
[1746007581573,4.99104528,1804.5,1804.4,4.93612]
[1746007582275,4.99104528,1804.5,1804.4,3.828]
[1746007582474,4.99104528,1804.5,1804.4,4.93612]
[1746007582869,4.99104528,1804.5,1804.4,3.828]
[1746007583068,4.99104528,1804.5,1804.2,1.10822]
[1746007583069,1.10818,1804.3,1804.2,1.10822]
[1746007583374,2.51454601,1804.3,1804.2,1.10822]
[1746007583575,4.21734601,1804.3,1804.2,1.10822]
[1746007583974,3.23186226,1804.3,1804.2,2.76402]
[1746007584175,3.23186226,1804.3,1804.2,6.59202]
[1746007584477,3.23189103,1804.3,1804.2,6.59202]
[1746007584874,4.21737478,1804.3,1804.2,6.59202]
[1746007585578,4.21742494,1804.3,1804.2,6.59202]
[1746007586178,4.21749443,1804.3,1804.2,6.59202]
[1746007586378,1.40651443,1804.3,1804.2,6.59202]
[1746007586579,2.51469443,1804.3,1804.2,7.38032]
[1746007587874,4.23969443,1804.3,1804.2,7.38032]
[1746007588179,4.23965455,1804.3,1804.2,6.59202]
[1746007589671,4.23965455,1804.3,1804.2,4.93622]
[1746007589979,3.81866375,1804.3,1804.2,4.93622]
[1746007590183,4.23960259,1804.3,1804.2,4.93622]
[1746007590672,3.13142259,1804.3,1804.2,6.52422]
[1746007590880,1.40642259,1804.3,1804.2,6.52422]
[1746007591078,0.42093884,1804.3,1804.2,7.31502]
[1746007591982,1.10816,1804.4,1804.3,1.10818]
[1746007592278,1.52904781,1804.4,1804.3,2.69618]
[1746007592481,2.51453156,1804.4,1804.3,2.69618]
[1746007592987,2.51451848,1804.4,1804.3,2.69618]
[1746007593282,2.51451848,1804.4,1804.3,6.52418]
[1746007593473,4.21731848,1804.4,1804.3,6.52418]
[1746007593880,4.21732216,1804.4,1804.3,6.52418]
[1746007594482,3.10916216,1804.4,1804.3,6.52418]
[1746007595680,4.21728216,1804.4,1804.3,6.52418]
[1746007595881,2.12369672,1804.4,1804.3,6.52418]
[1746007596082,0.42089672,1804.4,1804.3,6.52418]
[1746007597583,1.52901672,1804.4,1804.3,6.52418]
[1746007597782,1.52901964,1804.4,1804.3,6.52418]
[1746007599189,1.52902243,1804.4,1804.3,6.52418]
[1746007602693,2.51450618,1804.4,1804.3,6.52418]
[1746007602991,4.19080618,1804.4,1804.3,6.52418]
[1746007603593,3.08268618,1804.4,1804.3,6.52418]
[1746007603890,4.31566,1804.9,1804.8,1.10787]
[1746007604086,2.78416,1804.9,1804.8,1.10787]
[1746007604380,3.76964375,1804.9,1804.8,1.10787]
[1746007605092,3.76964375,1804.9,1804.8,4.93587]
[1746007605393,2.66178375,1804.9,1804.8,4.93587]
[1746007605586,2.66178375,1804.9,1804.8,6.55557]
[1746007605887,0.98548375,1804.9,1804.8,6.55557]
[1746007606094,1.9567,1805.0,1804.9,1.10781]
[1746007606393,3.6266,1805.0,1804.9,2.72751]
[1746007606593,4.61208375,1805.0,1804.9,2.72751]
[1746007607192,4.61208375,1805.0,1804.9,6.55551]
[1746007609489,3.6266,1805.0,1804.9,6.55551]
[1746007609695,4.61208375,1805.0,1804.9,6.55551]
[1746007620002,4.61208375,1805.0,1804.9,4.93581]
[1746007626408,4.61208375,1805.0,1804.9,6.63791]
[1746007626609,2.09328375,1805.0,1804.9,6.63791]
[1746007626907,3.536,1805.4,1805.2,1.10757]
[1746007627110,2.09306375,1805.3,1805.2,1.10757]
[1746007627410,2.09306375,1805.3,1805.2,5.77517]
[1746007628407,3.67796375,1805.3,1805.2,4.93557]
[1746007632007,2.09306375,1805.3,1805.2,4.93557]
[1746007634703,1.10758,1805.3,1805.2,4.93557]
[1746007634907,2.09306375,1805.3,1805.2,4.93557]
[1746007635795,1.10758,1805.3,1805.2,4.93557]
[1746007637509,2.78698,1805.3,1805.2,4.93557]
[1746007639811,3.77246375,1805.3,1805.2,4.93557]
[1746007640205,1.6794,1805.3,1805.2,4.93557]
[1746007640398,3.536,1805.4,1805.3,1.10757]
[1746007640598,5.1713,1805.4,1805.3,1.10757]
[1746007640808,6.15678375,1805.4,1805.3,1.10757]
[1746007641205,6.15678375,1805.4,1805.3,4.93557]
[1746007641511,7.26434375,1805.4,1805.3,4.93557]
[1746007642209,3.72834375,1805.4,1805.3,4.93557]
[1746007642910,3.72834375,1805.4,1805.3,44.628]
[1746007643610,3.72834375,1805.4,1805.3,3.828]
[1746007643811,3.72834375,1805.4,1805.3,4.93557]
[1746007644204,3.72834375,1805.4,1805.3,3.828]
[1746007644408,4.53994375,1805.4,1805.3,3.828]
[1746007645311,1.10763,1805.2,1805.1,1.10767]
[1746007645514,2.09311375,1805.2,1805.1,1.10767]
[1746007645912,2.91491375,1805.2,1805.1,1.10767]
[1746007646713,1.10769,1805.1,1805.0,6.05091]
[1746007647011,3.78277375,1805.1,1805.0,6.05091]
[1746007647208,2.79729,1805.1,1805.0,9.87891]
[1746007649915,3.78277375,1805.1,1805.0,9.87891]
[1746007655120,1.92947,1805.2,1805.1,1.10769]
[1746007655315,1.92947,1805.2,1805.1,2.76809]
[1746007655514,2.91495375,1805.2,1805.1,2.76809]
[1746007655921,4.59455375,1805.2,1805.1,2.76809]
[1746007657333,3.60907,1805.2,1805.1,2.76809]
[1746007657526,3.60907,1805.2,1805.1,3.57029]
[1746007657725,4.59455375,1805.2,1805.1,3.57029]
[1746007657921,2.09315375,1805.2,1805.1,3.57029]
[1746007658328,0.98548375,1805.2,1805.1,3.57029]
[1746007658835,1.10762,1805.3,1805.2,1.10763]
[1746007659133,2.09310375,1805.3,1805.2,3.56273]
[1746007659835,2.51493219,1805.3,1805.2,3.56273]
[1746007660134,2.51493219,1805.3,1805.2,7.39073]
[1746007660335,4.09905557,1805.3,1805.2,7.39073]
[1746007660839,1.52947182,1805.3,1805.2,7.39073]
[1746007661635,0.42185182,1805.3,1805.2,7.39073]
[1746007662236,5.14484,1805.4,1805.3,1.10757]
[1746007662438,5.56666044,1805.4,1805.3,2.80737]
[1746007662631,6.55214419,1805.4,1805.3,2.80737]
[1746007663139,6.55214419,1805.4,1805.3,6.63537]
[1746007663834,8.14004419,1805.4,1805.3,6.63537]
[1746007666838,7.15456044,1805.4,1805.3,6.63537]
[1746007667032,8.14004419,1805.4,1805.3,6.63537]
[1746007667232,4.93221419,1805.4,1805.3,6.63537]
[1746007667836,1.40717086,1805.4,1805.3,6.63537]
[1746007669041,2.51468086,1805.4,1805.3,6.63537]
[1746007669241,1.40717086,1805.4,1805.3,6.63537]
[1746007669444,0.42168711,1805.4,1805.3,6.63537]
[1746007671236,4.31521,1805.6,1805.5,1.10744]
[1746007671540,2.51437169,1805.6,1805.5,1.10744]
[1746007671740,2.51437169,1805.6,1805.5,3.66444]
[1746007672150,2.51437169,1805.6,1805.5,7.49244]
[1746007673743,2.5142355,1805.6,1805.5,7.49244]
[1746007674739,3.3384355,1805.6,1805.5,7.49244]
[1746007677447,3.33833141,1805.6,1805.5,7.49244]
[1746007678045,4.92393141,1805.6,1805.5,7.49244]
[1746007680046,4.92393141,1805.6,1805.5,4.93544]
[1746007680246,5.72663141,1805.6,1805.5,1.10744]
[1746007680448,1.10751,1805.5,1805.4,1.10748]
[1746007680748,3.11434766,1805.5,1805.4,1.10748]
[1746007680949,4.09993189,1805.5,1805.4,1.10748]
[1746007681249,4.09993189,1805.5,1805.4,4.93548]
[1746007682345,2.99242189,1805.5,1805.4,4.93548]
[1746007682739,2.99242189,1805.5,1805.4,6.63828]
[1746007683343,0.42133814,1805.5,1805.4,6.63828]
[1746007684354,5.96207,1805.7,1805.6,1.10738]
[1746007684539,4.16129111,1805.7,1805.6,1.10738]
[1746007685947,1.10738,1805.6,1805.5,4.93539]
[1746007686140,4.96270111,1805.6,1805.5,4.93539]
[1746007686344,4.96285257,1805.6,1805.5,4.93539]
[1746007687152,2.06308882,1805.6,1805.5,4.93539]
[1746007687545,0.42168882,1805.6,1805.5,4.93539]
[1746007687752,0.42168882,1805.6,1805.5,5.72359]
[1746007688049,0.42168882,1805.6,1805.5,8.93139]
[1746007689855,0.42168882,1805.6,1805.5,8.14319]
[1746007690154,1.6285,1805.7,1805.6,1.10738]
[1746007690358,3.15742068,1805.7,1805.6,1.10738]
[1746007690555,4.94480443,1805.7,1805.6,1.10738]
[1746007692050,4.94488799,1805.7,1805.6,1.10738]
[1746007693656,1.10738,1805.6,1805.5,4.93539]
[1746007693847,4.24304799,1805.6,1805.5,4.93539]
[1746007694047,4.24311151,1805.6,1805.5,4.93539]
[1746007697755,4.24325929,1805.6,1805.5,4.93539]
[1746007698163,4.24325929,1805.6,1805.5,1.10739]
[1746007699863,4.24329623,1805.6,1805.5,1.10739]
[1746007700053,3.82136375,1805.6,1805.5,1.10739]
[1746007700258,4.24329577,1805.6,1805.5,1.10739]
[1746007701863,4.24330145,1805.6,1805.5,1.10739]
[1746007703665,4.24329206,1805.6,1805.5,1.10739]
[1746007705163,1.10751,1805.5,1805.4,1.10747]
[1746007705358,4.13413831,1805.5,1805.4,1.10747]
[1746007705559,5.11959985,1805.5,1805.4,1.10747]
[1746007705965,1.10751,1805.4,1805.3,1.10754]
[1746007706165,5.06319985,1805.4,1805.3,1.10754]
[1746007706365,1.10763,1805.3,1805.2,1.10758]
[1746007706666,3.2620361,1805.3,1805.2,1.10758]
[1746007706865,4.24751985,1805.3,1805.2,1.10758]
[1746007707166,4.24751985,1805.3,1805.2,4.93558]
[1746007707366,4.24750069,1805.3,1805.2,4.93558]
[1746007711167,4.24724077,1805.3,1805.2,4.93558]
[1746007712866,0.42162702,1805.3,1805.2,4.93558]
[1746007713066,0.42162702,1805.3,1805.2,6.64898]
[1746007713669,3.17259702,1805.3,1805.2,6.64898]
[1746007714067,4.15808077,1805.3,1805.2,6.64898]
[1746007718761,4.15797855,1805.3,1805.2,6.64898]
[1746007720676,4.1581044,1805.3,1805.2,6.64898]
[1746007722773,3.0505344,1805.3,1805.2,6.64898]
[1746007723072,1.4071344,1805.3,1805.2,6.64898]
[1746007725978,2.5147044,1805.3,1805.2,6.64898]
[1746007726477,2.5148661,1805.3,1805.2,6.64898]
[1746007728375,2.5149395,1805.3,1805.2,6.64898]
[1746007729079,4.2475395,1805.3,1805.2,6.64898]
[1746007732184,4.24765554,1805.3,1805.2,6.64898]
[1746007733479,5.08655554,1805.3,1805.2,6.64898]
[1746007734083,5.08655554,1805.3,1805.2,4.93558]
[1746007734284,5.94365554,1805.3,1805.2,4.93558]
[1746007735186,5.94365554,1805.3,1805.2,1.10758]
[1746007735986,5.9438262,1805.3,1805.2,1.10758]
[1746007737987,5.94381126,1805.3,1805.2,1.10758]
[1746007739190,1.10763,1805.2,1805.1,5.17725]
[1746007739488,4.16547126,1805.2,1805.1,5.17725]
[1746007739889,4.16546184,1805.2,1805.1,5.17725]
[1746007740190,4.16546184,1805.2,1805.1,3.2078]
[1746007740888,4.16546184,1805.2,1805.1,4.31549]
[1746007741394,4.16547444,1805.2,1805.1,4.31549]
[1746007741992,4.1654054,1805.2,1805.1,4.31549]
[1746007742994,4.16535035,1805.2,1805.1,4.31549]
[1746007744988,3.05764564,1805.2,1805.1,4.31549]
[1746007745186,0.42196189,1805.2,1805.1,5.99579]
[1746007745695,2.76262,1805.4,1805.3,1.10757]
[1746007745991,3.18450731,1805.4,1805.3,1.10757]
[1746007746194,4.16999106,1805.4,1805.3,2.78787]
[1746007746795,4.16995562,1805.4,1805.3,2.78787]
[1746007747789,4.16995562,1805.4,1805.3,3.61057]
[1746007748889,3.74810375,1805.4,1805.3,3.61057]
[1746007749092,4.16990865,1805.4,1805.3,3.61057]
[1746007750285,0.4218049,1805.4,1805.3,3.61057]
[1746007750680,3.63108,1805.7,1805.6,1.10738]
[1746007750880,0.42171333,1805.7,1805.6,1.10738]
[1746007751287,3.60069,1806.0,1805.9,1.1072]
[1746007751491,4.02197201,1806.0,1805.9,1.1072]
[1746007751692,5.00745576,1806.0,1805.9,1.1072]
[1746007752095,5.00745576,1806.0,1805.9,6.6213]
[1746007752295,5.00745576,1806.0,1805.9,3.828]
[1746007753296,1.1072,1805.9,1805.8,3.60975]
[1746007753498,4.18916576,1805.9,1805.8,3.60975]
[1746007754594,4.1886433,1805.9,1805.8,3.60975]
[1746007756102,4.1886433,1805.9,1805.8,7.43775]
[1746007756295,4.18842398,1805.9,1805.8,6.3305]
[1746007756692,4.18842398,1805.9,1805.8,7.43776]
[1746007757096,4.18842398,1805.9,1805.8,3.60976]
[1746007757297,4.18842398,1805.9,1805.8,2.5025]
[1746007757501,4.18842398,1805.9,1805.8,3.60976]
[1746007758011,4.18842398,1805.9,1805.8,2.5025]
[1746007758403,4.18836558,1805.9,1805.8,2.5025]
[1746007758710,4.18836558,1805.9,1805.8,0.8164]
[1746007760212,4.1882532,1805.9,1805.8,1.92366]
[1746007760407,3.76788375,1805.9,1805.8,2.4746]
[1746007760604,3.76788375,1805.9,1805.8,0.8164]
[1746007761709,3.76788375,1805.9,1805.8,1.92366]
[1746007761910,4.18820549,1805.9,1805.8,1.92366]
[1746007762212,3.76788375,1805.9,1805.8,0.8164]
[1746007762508,1.10726,1805.8,1805.7,5.97328]
[1746007762712,3.80504375,1805.8,1805.7,5.97332]
[1746007763707,3.80504375,1805.8,1805.7,4.866]
[1746007763914,4.22531449,1805.8,1805.7,4.866]
[1746007766710,4.22534227,1805.8,1805.7,4.866]
[1746007769613,3.11821622,1805.8,1805.6,0.8294]
[1746007769811,2.76847,1805.6,1805.3,1.10753]
[1746007770010,1.10757,1805.4,1805.3,3.63533]
[1746007770912,2.7531,1805.5,1805.4,1.10751]
[1746007771218,2.09298375,1805.5,1805.4,6.60381]
[1746007772318,2.51373523,1805.5,1805.4,6.60381]
[1746007775320,2.51422721,1805.5,1805.4,6.60381]
[1746007777124,1.52874346,1805.5,1805.4,6.60381]
[1746007777421,0.42124346,1805.5,1805.4,6.60381]
[1746007777723,4.31517,1805.7,1805.6,1.10738]
[1746007777919,4.73646879,1805.7,1805.6,1.10738]
[1746007778119,1.52866879,1805.7,1805.6,1.10738]
[1746007778320,1.52866879,1805.7,1805.6,3.55358]
[1746007779526,1.52879006,1805.7,1805.6,3.55358]
[1746007781027,1.52887872,1805.7,1805.6,3.55358]
[1746007784826,1.52905305,1805.7,1805.6,3.55358]
[1746007786234,0.42168305,1805.7,1805.6,3.55358]
[1746007786732,1.4071668,1805.7,1805.6,3.55358]
[1746007786934,2.5144868,1805.7,1805.6,3.55358]